bitfinex-derivatives/quotes_ETHF0:USTF0_20251210
["timestamp","ask_amount","ask_price","bid_price","bid_amount"]
[1765355059177,4.5852,3332.3,3332.2,0.15005]
[1765355059978,4.5852,3332.3,3332.2,1.61305]
[1765355060185,3.2078,3332.3,3332.2,1.61305]
[1765355060382,3.8846,3332.3,3332.2,1.61305]
[1765355060977,3.2078,3332.3,3332.2,1.61305]
[1765355062374,3.8846,3332.3,3332.2,1.61305]
[1765355063285,3.2078,3332.3,3332.2,1.61305]
[1765355064182,0.00823678,3332.8,3332.7,1.463]
[1765355064383,0.00823678,3332.8,3332.7,2.3882809]
[1765355065280,0.00823678,3332.8,3332.7,2.5383109]
[1765355068387,0.00823678,3332.8,3332.7,1.61303]
[1765355069184,0.00823678,3332.8,3332.7,2.5383109]
[1765355070689,3.2078,3333.4,3333.3,1.613]
[1765355070893,4.5852,3333.9,3333.8,0.7393]
[1765355071187,4.5852,3333.9,3333.8,1.463]
[1765355071588,3.8846,3333.9,3333.8,1.463]
[1765355071791,3.21079969,3333.9,3333.8,1.61558978]
[1765355072292,3.88759969,3333.9,3333.8,1.61558978]
[1765355072489,0.00299969,3333.9,3333.8,1.61558978]
[1765355072699,0.67979969,3333.9,3333.8,1.61558978]
[1765355073294,0.00299969,3333.9,3333.8,1.61558978]
[1765355073494,0.00299969,3333.9,3333.8,4.82338978]
[1765355073995,0.4123,3335.5,3333.8,4.82338978]
[1765355073996,3.8846,3334.8,3334.7,1.463]
[1765355074294,3.2078,3334.8,3334.7,1.61294]
[1765355074595,1.3774,3335.0,3334.9,0.14993]
[1765355075094,1.38104282,3335.0,3334.9,0.14993]
[1765355075690,1.3774,3334.7,3334.6,0.0045039]
[1765355075991,4.5852,3334.7,3334.6,0.0045039]
[1765355076189,4.5852,3334.7,3334.6,0.7438039]
[1765355076382,3.8846,3334.7,3334.6,1.4675039]
[1765355076590,4.5852,3334.7,3334.6,1.4675039]
[1765355077096,4.5852,3334.7,3334.6,0.0045039]
[1765355081894,10.5852,3334.7,3334.6,0.0045039]
[1765355082093,10.5852,3334.7,3333.8,3.21040978]
[1765355082094,1.4259,3333.9,3333.8,3.92820978]
[1765355082296,1.4259,3333.9,3333.8,1.40050978]
[1765355084307,1.4259,3333.9,3333.8,0.72040978]
[1765355084703,1.4259,3333.9,3333.8,0.00260978]
[1765355088010,1.4259,3333.9,3333.8,0.72040978]
[1765355088206,1.4259,3333.9,3333.8,1.40050978]
[1765355090508,1.4259,3333.9,3333.8,0.00260978]
[1765355091211,4.6337,3333.9,3333.8,0.00260978]
[1765355093015,4.6337,3333.9,3333.8,0.72040978]
[1765355093814,4.6337,3333.9,3333.8,1.40050978]
[1765355094118,3.9123,3333.9,3333.8,1.40050978]
[1765355095118,4.6337,3333.9,3333.8,0.72040978]
[1765355095616,4.6337,3333.9,3333.8,0.00260978]
[1765355100117,5.27137809,3333.9,3333.8,0.00260978]
[1765355100413,5.27137809,3333.9,3333.8,0.72040978]
[1765355100612,4.6337,3333.9,3333.8,0.72040978]
[1765355100813,4.6337,3333.9,3333.8,0.00260978]
[1765355101015,5.27137755,3333.9,3333.8,0.00260978]
[1765355101215,4.6337,3333.9,3333.8,0.00260978]
[1765355102112,4.6337,3333.9,3333.8,0.72040978]
[1765355102921,4.6337,3333.9,3333.8,0.00260978]
[1765355103821,4.6337,3333.9,3333.8,0.72040978]
[1765355105322,4.6337,3333.9,3333.8,0.00260978]
[1765355105824,5.27164305,3333.9,3333.8,0.00260978]
[1765355107518,5.27164305,3333.9,3333.8,1.44140978]
[1765355107725,5.27164305,3333.9,3333.8,0.72850978]
[1765355108419,5.27164305,3333.9,3333.8,1.44140978]
[1765355108821,5.27164305,3333.9,3333.8,0.72850978]
[1765355109325,5.27164305,3333.9,3333.8,0.00260978]
[1765355110524,5.27164305,3333.9,3333.8,1.44140978]
[1765355110725,0.63794305,3333.9,3333.8,1.44140978]
[1765355110937,4.609,3334.0,3333.9,1.4388]
[1765355111225,1.4012,3333.9,3333.8,0.72850978]
[1765355111923,1.4012,3333.9,3333.8,1.46330978]
[1765355112129,2.04007123,3333.9,3333.8,1.46330978]
[1765355112426,1.35367123,3333.9,3333.8,1.46330978]
[1765355112829,2.07007123,3333.9,3333.8,1.46330978]
[1765355113429,2.07007123,3333.9,3333.8,0.00260978]
[1765355131645,1.4552,3333.6,3333.5,0.37134726]
[1765355131936,1.4552,3332.6,3332.3,1.60204849]
[1765355132143,0.7388,3332.2,3332.1,3.04254849]
[1765355132342,0.7388,3332.2,3332.1,1.4405]
[1765355132738,0.74202053,3332.2,3332.1,1.44421272]
[1765355134352,1.45842053,3332.2,3332.1,1.44421272]
[1765355135049,1.45842053,3332.2,3332.1,0.00371272]
[1765355135246,5.30457674,3332.2,3332.1,0.00371272]
[1765355135448,6.22807926,3332.2,3332.1,0.00371272]
[1765355136249,5.30402942,3332.2,3332.1,0.00371272]
[1765355136456,4.66622053,3332.2,3332.1,0.00371272]
[1765355137249,5.30360171,3332.2,3332.1,0.00371272]
[1765355137451,5.30321687,3332.2,3332.1,0.00371272]
[1765355137852,0.6782,3331.1,3331.0,1.8396]
[1765355138055,1.3534,3331.3,3331.2,1.4308]
[1765355138249,0.6782,3331.3,3331.2,1.4308]
[1765355138954,0.6782,3331.3,3331.2,1.43311855]
[1765355140760,1.3534,3331.3,3331.2,1.43311855]
[1765355141264,0.6782,3331.3,3331.2,1.43311855]
[1765355144666,1.3534,3331.3,3331.2,1.43311855]
[1765355145466,0.6782,3331.3,3331.2,1.43311855]
[1765355145661,3.886,3331.7,3331.6,0.7237]
[1765355145867,4.5612,3331.7,3331.6,1.4308]
[1765355146368,4.5612,3331.7,3331.6,0.7237]
[1765355148069,1.3534,3331.6,3331.5,1.1513]
[1765355148465,1.3534,3331.6,3331.5,1.8584]
[1765355151767,3.886,3331.7,3331.6,1.4308]
[1765355151966,4.5612,3331.7,3331.6,1.4308]
[1765355152167,1.3534,3331.6,3331.5,1.8584]
[1765355155270,0.6782,3331.6,3331.5,1.8584]
[1765355155572,4.56442053,3332.2,3332.1,1.4308]
[1765355155869,1.3534,3332.1,3332.0,1.1513]
[1765355156172,0.6782,3331.8,3331.7,2.35606973]
[1765355156571,4.56442053,3332.2,3332.1,1.4308]
[1765355156773,3.88922053,3332.2,3332.1,1.4308]
[1765355157173,4.56442053,3332.2,3332.1,1.4308]
[1765355157564,4.56442053,3332.2,3332.1,0.7237]
[1765355157770,4.56442053,3332.2,3332.1,1.4308]
[1765355159574,4.56442053,3332.2,3332.1,0.7237]
[1765355160270,1.3534,3332.1,3332.0,1.1513]
[1765355160468,1.3534,3332.1,3332.0,1.8584]
[1765355161474,1.3534,3331.8,3331.7,2.35606973]
[1765355162570,1.3534,3331.8,3331.5,4.14774387]
[1765355162775,1.3534,3331.6,3331.5,3.72014387]
[1765355163970,1.3534,3331.6,3331.5,5.57854387]
[1765355164174,3.2078,3331.8,3331.7,1.4308]
[1765355164468,5.20200027,3331.8,3331.7,2.35606973]
[1765355169376,4.52680027,3331.8,3331.7,2.35606973]
[1765355170170,5.26030027,3331.8,3331.7,2.35606973]
[1765355170879,5.26030027,3331.8,3331.7,1.64896973]
[1765355171177,5.26030027,3331.8,3331.7,2.32386973]
[1765355172378,5.26030027,3331.8,3331.7,1.64896973]
[1765355173179,5.26030027,3331.8,3331.7,2.38446973]
[1765355175583,5.26030027,3331.8,3331.7,1.64896973]
[1765355175882,5.26030027,3331.8,3331.7,0.92526973]
[1765355176078,1.4122,3331.6,3331.5,1.1525]
[1765355176287,2.05300027,3331.6,3331.5,0.4276]
[1765355176583,1.4122,3331.5,3331.4,1.65016973]
[1765355176785,2.05300027,3331.5,3331.4,0.92526973]
[1765355176972,2.05300027,3331.5,3331.4,1.65016973]
[1765355178183,0.64080027,3331.5,3331.4,2.38566973]
[1765355178384,2.04780027,3331.7,3331.6,1.3684]
[1765355180086,2.04780027,3331.7,3331.6,1.59816973]
[1765355180584,1.407,3331.4,3331.3,2.29366973]
[1765355180787,4.6148,3331.4,3331.3,1.59816973]
[1765355180979,4.6148,3331.4,3331.3,2.29366973]
[1765355182287,3.904,3331.4,3331.3,2.29366973]
[1765355182490,3.2078,3331.4,3331.3,2.29366973]
[1765355182883,3.2078,3331.4,3331.3,1.3684]
[1765355183388,4.6148,3331.4,3331.3,1.3684]
[1765355183682,3.904,3331.4,3331.3,1.3684]
[1765355183885,4.6148,3331.4,3331.3,1.3684]
[1765355184084,4.6148,3331.4,3331.2,0.92758828]
[1765355184085,1.407,3331.3,3331.2,0.67521855]
[1765355185690,1.407,3331.3,3331.2,0.00231855]
[1765355186081,3.2078,3331.4,3331.3,0.6729]
[1765355186376,5.25646953,3331.4,3331.3,0.6729]
[1765355186784,1.407,3331.3,3331.2,0.67521855]
[1765355187482,1.407,3331.3,3331.2,1.37071855]
[1765355187689,3.904,3331.4,3331.3,1.3684]
[1765355187992,4.6148,3331.4,3331.3,1.3684]
[1765355188988,4.6148,3331.4,3331.3,0.6729]
[1765355189383,1.407,3331.3,3331.2,0.00231855]
[1765355189593,2.04903449,3331.3,3331.2,0.00231855]
[1765355190888,2.97430422,3331.3,3331.2,0.00231855]
[1765355191086,2.97430422,3331.3,3330.2,1.60204849]
[1765355191087,1.407,3330.3,3330.2,1.60204849]
[1765355191383,1.407,3330.3,3329.1,0.6729]
[1765355191384,0.15015,3330.0,3329.1,0.6729]
[1765355191585,3.2078,3329.2,3329.1,0.6729]
[1765355191788,3.85005803,3329.2,3329.1,0.6729]
[1765355191979,3.85005803,3329.2,3329.1,1.3684]
[1765355192184,3.21096244,3329.2,3329.1,0.67557403]
[1765355192779,3.21096244,3329.2,3329.1,1.37107403]
[1765355195998,0.00316244,3329.2,3329.1,1.37107403]
[1765355197087,3.19512809,3329.7,3329.6,1.3684]
[1765355198294,3.1976096,3329.7,3329.6,1.3684]
[1765355198490,0.00248151,3329.7,3329.6,1.3684]
[1765355201298,3.2078,3330.1,3330.0,1.8213]
[1765355201593,3.2078,3330.1,3330.0,1.35086973]
[1765355201792,3.2078,3330.1,3330.0,0.4256]
[1765355202294,3.21003415,3330.1,3330.0,0.4256]
[1765355202695,3.21003415,3330.1,3330.0,1.8213]
[1765355203996,3.21003415,3330.1,3330.0,1.1351]
[1765355204596,3.21003415,3330.1,3330.0,1.8213]
[1765355205503,3.52323415,3330.1,3330.0,0.10063139]
[1765355205685,0.3132,3329.6,3329.5,0.4254]
[1765355205892,3.521,3329.6,3329.5,0.4254]
[1765355206199,3.521,3329.6,3329.3,3.72014387]
[1765355206200,0.3132,3329.4,3329.3,3.72014387]
[1765355206401,0.3132,3329.2,3329.0,0.4254]
[1765355206590,3.521,3329.2,3329.0,0.4254]
[1765355206795,3.521,3329.2,3329.1,0.71217403]
[1765355209508,3.521,3329.2,3329.1,0.00267403]
[1765355209807,3.521,3329.2,3329.1,0.71217403]
[1765355210503,3.3644,3329.2,3329.1,1.39837403]
[1765355210708,3.2078,3329.2,3329.1,1.39837403]
[1765355211302,3.3644,3329.6,3329.5,0.7095]
[1765355211499,3.521,3329.6,3329.5,0.4256]
[1765355211708,0.3132,3329.2,3329.1,0.00267403]
[1765355211908,3.521,3329.2,3329.1,0.00267403]
[1765355212311,3.521,3329.2,3329.1,0.71217403]
[1765355213511,3.521,3329.2,3329.1,0.00267403]
[1765355214313,3.521,3329.2,3329.1,0.71217403]
[1765355218216,3.521,3329.2,3329.1,1.39837403]
[1765355218415,3.3644,3329.2,3329.1,1.39837403]
[1765355219516,3.521,3329.2,3329.1,1.39837403]
[1765355220209,3.3644,3329.2,3329.1,1.39837403]
[1765355220519,3.2078,3329.2,3329.1,1.39837403]
[1765355220721,3.3644,3329.2,3329.1,1.39837403]
[1765355220920,3.521,3329.2,3329.1,0.00267403]
[1765355221317,3.521,3329.2,3329.1,0.71217403]
[1765355221516,3.521,3329.2,3329.1,0.00267403]
[1765355222822,3.521,3329.2,3329.1,0.71217403]
[1765355224926,3.521,3329.2,3329.1,0.00267403]
[1765355225423,4.1732749,3329.2,3329.1,0.00267403]
[1765355228034,4.1732749,3329.2,3329.1,1.40387403]
[1765355228532,3.2078,3329.2,3329.1,1.40387403]
[1765355228724,3.2078,3329.2,3329.1,2.33015982]
[1765355229124,3.3646,3329.2,3329.1,2.33015982]
[1765355229531,3.5214,3329.2,3329.1,2.33015982]
[1765355229934,3.5214,3329.2,3329.1,0.00267403]
[1765355230928,3.2078,3329.2,3329.1,1.38887403]
[1765355231234,3.5226,3329.2,3329.1,1.38887403]
[1765355231624,3.5226,3329.2,3329.1,0.00267403]
[1765355233138,4.17540975,3329.2,3329.1,0.00267403]
[1765355234040,4.17540975,3329.2,3329.1,0.69257403]
[1765355235937,4.17540975,3329.2,3329.1,1.39517403]
[1765355236140,4.01800975,3329.2,3329.1,1.39517403]
[1765355236439,4.17540975,3329.2,3329.1,1.39517403]
[1765355237142,4.17540975,3329.2,3329.1,0.00267403]
[1765355237547,4.43875003,3329.2,3329.1,0.00267403]
[1765355238345,4.44036362,3329.2,3329.1,0.00267403]
[1765355242946,4.44036362,3329.2,3329.1,0.69257403]
[1765355244544,4.44036362,3329.2,3329.1,0.00267403]
[1765355248153,4.17702334,3329.2,3329.1,0.00267403]
[1765355248346,4.17702334,3329.2,3329.1,1.39517403]
[1765355252055,4.01962334,3329.2,3329.1,1.39517403]
[1765355252944,3.86222334,3329.2,3329.1,1.39517403]
[1765355253141,3.3652,3329.8,3329.7,1.3925]
[1765355253343,4.44024333,3329.8,3329.7,1.3925]
[1765355255758,3.86215242,3329.8,3329.7,1.3925]
[1765355256149,3.3652,3329.8,3329.7,1.3925]
[1765355256357,3.5226,3329.8,3329.7,1.3925]
[1765355258854,3.3652,3329.8,3329.7,1.3925]
[1765355260056,3.2078,3329.8,3329.7,1.3925]
[1765355260254,3.5222,3329.8,3329.7,1.3925]
[1765355264358,3.365,3329.8,3329.7,1.3925]
[1765355265065,3.5222,3329.8,3329.7,1.3925]
[1765355266462,3.365,3329.8,3329.7,1.3925]
[1765355269966,3.5222,3329.8,3329.7,0.6899]
[1765355270658,0.3144,3329.6,3329.5,1.8566]
[1765355270858,0.3144,3329.6,3329.5,0.4393]
[1765355271668,0.3144,3329.6,3329.5,1.8566]
[1765355271669,0.1572,3329.6,3329.5,1.8566]
[1765355271867,0.3144,3329.6,3329.5,1.8566]
[1765355272264,0.3144,3329.6,3329.5,1.1618]
[1765355272666,0.3144,3329.6,3329.5,2.08801093]
[1765355273567,0.3144,3329.6,3329.5,2.78281093]
[1765355274673,0.3144,3329.6,3329.5,2.08801093]
[1765355274874,0.3144,3329.6,3329.5,0.4393]
[1765355275171,0.3144,3329.6,3329.5,1.36551093]
[1765355276385,0.3144,3329.6,3329.5,2.08801093]
[1765355276585,0.3144,3329.6,3329.5,2.78281093]
[1765355276979,0.1572,3329.6,3329.5,2.78281093]
[1765355277180,3.5222,3329.8,3329.7,1.4173]
[1765355277785,3.5222,3329.8,3329.7,0.7225]
[1765355278687,0.3144,3329.6,3329.5,2.78281093]
[1765355279181,0.3144,3329.6,3329.5,1.36551093]
[1765355279680,0.3144,3329.6,3329.5,0.4393]
[1765355280081,0.3144,3329.3,3329.2,3.72014387]
[1765355280286,3.5222,3329.3,3329.2,3.72014387]
[1765355280687,4.17420495,3329.3,3329.2,3.72014387]
[1765355280990,4.17420422,3329.3,3329.2,3.72014387]
[1765355281287,4.1742763,3329.3,3329.2,3.72014387]
[1765355281486,4.1742763,3329.3,3329.2,4.44264387]
[1765355281787,0.3144,3329.3,3329.2,5.13744387]
[1765355282188,3.5222,3329.3,3329.2,5.13744387]
[1765355282381,4.17421077,3329.3,3329.2,5.13744387]
[1765355283388,3.5222,3329.3,3329.2,5.13744387]
[1765355283591,3.5222,3329.3,3329.2,1.4173]
[1765355286889,0.1572,3329.3,3329.2,1.4173]
[1765355287091,3.5222,3329.7,3329.6,0.7225]
[1765355287291,0.3108,3329.6,3329.5,1.1351]
[1765355287592,0.9625435,3329.6,3329.5,0.4066]
[1765355289390,0.3108,3329.2,3329.1,0.92888496]
[1765355289585,0.3108,3329.2,3329.1,0.00267403]
[1765355290091,3.5186,3329.2,3329.1,0.00267403]
[1765355290293,4.1703435,3329.2,3329.1,0.00267403]
[1765355291293,4.43316751,3329.2,3329.1,0.00267403]
[1765355295081,4.43316751,3329.2,3328.0,2.02632467]
[1765355295082,0.3156,3328.6,3328.0,0.4256]
[1765355295388,0.3156,3328.6,3328.0,1.8017]
[1765355295389,0.1578,3328.1,3328.0,1.8017]
[1765355295889,3.2078,3328.4,3328.3,1.3761]
[1765355296089,3.2078,3328.4,3328.3,2.30478926]
[1765355297488,0.0045039,3328.6,3328.5,1.7837]
[1765355303098,0.0045039,3328.6,3328.5,2.70991093]
[1765355305193,3.2078,3329.4,3329.3,1.3761]
[1765355305493,3.4437,3329.4,3329.3,1.3761]
[1765355305996,3.2078,3329.4,3329.3,1.3761]
[1765355306198,3.4437,3329.4,3329.3,1.3761]
[1765355309897,3.6796,3329.4,3329.3,1.3761]
[1765355314202,3.4437,3329.4,3329.3,1.3761]
[1765355315807,3.6796,3329.4,3329.3,1.3761]
[1765355319411,3.6796,3329.4,3329.3,0.6977]
[1765355319610,3.6796,3329.4,3329.2,0.92621093]
[1765355319911,0.469,3329.3,3329.2,2.34301093]
[1765355320703,0.2345,3329.3,3329.2,2.34301093]
[1765355322307,0.469,3329.3,3329.2,0.92621093]
[1765355322506,0.469,3329.1,3329.0,1.0988039]
[1765355323411,0.469,3329.1,3329.0,0.4121039]
[1765355323800,0.469,3329.1,3329.0,1.8289039]
[1765355324406,0.2345,3329.1,3329.0,1.8289039]
[1765355324813,3.6768,3329.4,3329.3,1.4168]
[1765355325010,3.4423,3329.4,3329.3,2.34301093]
[1765355325311,3.6768,3329.4,3329.3,2.34301093]
[1765355327012,3.6768,3329.4,3329.3,0.6867]
[1765355327305,0.469,3329.1,3329.0,1.0988039]
[1765355328604,3.2078,3329.4,3329.0,1.8289039]
[1765355328811,3.4423,3329.4,3329.3,1.4168]
[1765355329114,4.09259147,3329.4,3329.3,1.4168]
[1765355329414,4.32709147,3329.4,3329.3,1.4168]
[1765355330614,4.09259147,3329.4,3329.3,1.4168]
[1765355335318,4.35282156,3329.4,3329.3,1.4168]
[1765355336112,4.58732156,3329.4,3329.3,0.6867]
[1765355336515,0.2345,3329.1,3329.0,3.42962857]
[1765355336917,0.469,3329.1,3329.0,3.42962857]
[1765355337517,0.469,3329.1,3329.0,2.69952857]
[1765355338124,0.469,3329.1,3329.0,3.42962857]
[1765355340020,0.469,3329.1,3329.0,1.8289039]
[1765355340322,0.2345,3329.1,3329.0,1.8289039]
[1765355340723,0.65029147,3329.3,3329.2,1.4168]
[1765355341319,0.88479147,3329.3,3329.2,1.4168]
[1765355342528,0.65029147,3329.3,3329.2,1.4168]
[1765355343516,0.65029147,3329.3,3329.2,4.6246]
[1765355343727,0.0045039,3329.7,3329.6,1.4168]
[1765355344619,0.0045039,3329.7,3329.6,3.01752467]
[1765355345223,0.0045039,3329.7,3329.6,1.4168]
[1765355346919,0.0045039,3329.7,3329.6,3.01752467]
[1765355347318,0.0045039,3329.7,3329.6,1.4168]
[1765355350738,0.2390039,3329.7,3329.6,1.4168]
[1765355351536,0.0045039,3329.7,3329.6,1.4168]
[1765355352332,0.2394039,3329.7,3329.6,1.4168]
[1765355353331,0.0045039,3329.7,3329.6,1.4168]
[1765355354627,0.00223415,3330.1,3330.0,1.8305]
[1765355354828,0.00223415,3330.1,3330.0,2.75687682]
[1765355357340,3.415e-05,3330.1,3330.0,2.75687682]
[1765355363634,3.415e-05,3330.1,3330.0,5.96467682]
[1765355364543,0.48343415,3330.1,3330.0,1.8305]
[1765355366247,0.48343415,3330.1,3330.0,1.1542]
[1765355366445,0.48343415,3330.1,3330.0,1.8305]
[1765355366642,0.48343415,3330.1,3330.0,0.4144]
[1765355366946,0.4834,3329.6,3329.5,3.6374]
[1765355367243,0.4834,3329.1,3329.0,1.1519039]
[1765355367543,3.6912,3329.1,3329.0,1.1519039]
[1765355368138,3.6912,3329.1,3329.0,1.8282039]
[1765355368452,3.4495,3329.1,3329.0,1.8282039]
[1765355370346,0.2417,3329.1,3329.0,1.8282039]
[1765355370546,3.2078,3329.5,3329.4,1.4161]
[1765355370843,3.2078,3329.5,3329.0,0.4121039]
[1765355370844,0.2417,3329.1,3329.0,1.8282039]
[1765355371234,0.4834,3329.1,3329.0,1.8282039]
[1765355371437,3.6912,3329.1,3329.0,1.8282039]
[1765355372345,3.6912,3329.1,3329.0,0.4121039]
[1765355372743,4.34017851,3329.1,3329.0,0.4121039]
[1765355374250,3.6912,3329.1,3329.0,0.4121039]
[1765355374544,3.6912,3329.1,3329.0,1.1519039]
[1765355375343,3.4495,3329.1,3329.0,1.8282039]
[1765355375546,3.6912,3329.1,3329.0,1.8282039]
[1765355377946,3.6912,3329.1,3329.0,0.4121039]
[1765355380653,3.6912,3329.1,3329.0,0.0045039]
[1765355380847,3.6912,3329.1,3329.0,0.4057039]
[1765355381043,3.6911,3329.1,3329.0,1.8532039]
[1765355381247,3.4495,3329.1,3329.0,1.8532039]
[1765355382142,3.6911,3329.1,3329.0,1.8532039]
[1765355382948,3.2078,3329.1,3329.0,1.8532039]
[1765355383151,3.4494,3329.5,3329.4,0.74]
[1765355383350,3.4494,3329.5,3329.4,1.4475]
[1765355383351,3.691,3329.5,3329.4,1.4475]
[1765355384764,3.4494,3329.5,3329.4,1.4475]
[1765355386451,3.691,3329.5,3329.4,1.4475]
[1765355387356,3.4494,3329.5,3329.4,1.4475]
[1765355387652,3.691,3329.5,3329.4,1.4475]
[1765355388451,3.691,3329.5,3329.4,0.7075]
[1765355388756,3.2078,3329.5,3329.0,1.8532039]
[1765355390058,3.4494,3329.5,3329.4,1.4475]
[1765355390555,3.691,3329.5,3329.4,1.4475]
[1765355392260,4.34069598,3329.5,3329.4,1.4475]
[1765355394160,4.09909598,3329.5,3329.4,1.4475]
[1765355394362,4.34069598,3329.5,3329.4,1.4475]
[1765355394662,0.2416,3329.1,3329.0,1.8532039]
[1765355395160,3.691,3329.1,3329.0,1.8532039]
[1765355395459,3.691,3329.1,3329.0,1.1132039]
[1765355395861,3.691,3329.1,3329.0,0.4057039]
[1765355396257,4.34254167,3329.1,3329.0,0.0045039]
[1765355396458,4.60246209,3329.1,3329.0,0.0045039]
[1765355397362,0.4832,3328.6,3328.5,0.4076]
[1765355397660,4.61758106,3328.6,3328.5,0.4076]
[1765355397861,5.26912273,3328.6,3328.5,0.4076]
[1765355398654,5.26912273,3328.6,3328.5,1.1151]
[1765355399063,4.34254167,3328.6,3328.5,1.1151]
[1765355400958,3.691,3328.6,3328.5,1.8551]
[1765355401161,0.4832,3329.1,3329.0,1.8487]
[1765355401362,1.39437412,3329.1,3329.0,0.4012]
[1765355401662,0.4832,3328.6,3328.5,0.4076]
[1765355401862,4.61758106,3328.6,3328.5,0.4076]
[1765355402060,5.26886584,3328.6,3328.5,0.4076]
[1765355403060,4.34228478,3328.6,3328.5,1.1151]
[1765355403364,3.691,3329.2,3329.1,0.7075]
[1765355403556,0.4832,3328.6,3328.5,0.4076]
[1765355403757,0.4832,3328.6,3328.5,1.8551]
[1765355404162,0.2416,3328.6,3328.5,1.8551]
[1765355405664,0.89270886,3328.7,3328.6,1.4475]
[1765355405867,1.13430886,3328.7,3328.6,1.4475]
[1765355406768,1.13430886,3328.7,3328.6,0.7075]
[1765355407061,0.4832,3328.6,3328.5,0.4076]
[1765355407367,0.4832,3328.4,3328.3,0.00247833]
[1765355407660,4.61758106,3328.4,3328.3,0.00247833]
[1765355407866,4.60187696,3328.4,3328.3,0.70997833]
[1765355408069,4.10050886,3328.4,3328.3,1.39947833]
[1765355408461,4.34190886,3328.4,3328.3,1.39947833]
[1765355409066,4.10050886,3328.4,3328.3,1.39947833]
[1765355409467,3.4494,3328.4,3328.3,1.39947833]
[1765355409660,3.2078,3328.4,3328.3,1.39947833]
[1765355410566,0.0045039,3328.7,3328.3,1.39947833]
[1765355410567,0.2459039,3328.7,3328.6,1.4014]
[1765355410766,0.65501401,3328.7,3328.6,1.4014]
[1765355411071,0.89641401,3328.7,3328.6,1.4014]
[1765355411370,0.2459039,3328.7,3328.6,1.4014]
[1765355411572,0.2459039,3328.7,3328.6,4.6092]
[1765355411573,0.0045039,3328.7,3328.6,4.6092]
[1765355420472,0.2459039,3328.7,3328.6,4.6092]
[1765355420681,0.0045039,3328.7,3328.6,4.6092]
[1765355422469,0.0045039,3328.7,3328.6,4.75941]
[1765355422667,1.8307,3330.0,3329.9,1.4014]
[1765355422868,2.48214306,3330.0,3329.9,0.7119]
[1765355423073,0.6983,3329.6,3329.5,4.9132]
[1765355423271,1.3949,3329.6,3329.5,4.9132]
[1765355424672,0.0045039,3329.9,3329.1,3.2078]
[1765355424673,0.6966,3329.2,3329.1,3.2078]
[1765355424868,1.3949,3328.8,3328.7,4.75941]
[1765355428078,0.6983,3328.8,3328.7,4.75941]
[1765355428381,1.3949,3328.8,3328.7,4.75941]
[1765355430681,1.3949,3328.8,3328.7,4.06991]
[1765355434282,1.3949,3328.8,3328.7,0.15021]
[1765355434876,1.3949,3328.8,3328.7,1.55161]
[1765355436280,3.2078,3329.1,3329.0,1.8347]
[1765355436480,5.25412763,3329.1,3329.0,1.4014]
[1765355436880,3.2078,3329.1,3329.0,2.76128106]
[1765355437474,3.9061,3329.1,3329.0,2.76128106]
[1765355437975,0.6983,3329.1,3329.0,2.76128106]
[1765355438186,1.8606,3329.5,3329.4,0.7281]
[1765355438386,2.51218474,3329.5,3329.4,0.7281]
[1765355438686,2.51218474,3329.5,3329.4,1.4185]
[1765355439085,0.65158474,3329.5,3329.4,1.4185]
[1765355439283,3.2123039,3329.9,3329.7,1.4185]
[1765355439284,2.33603499,3329.8,3329.7,1.4185]
[1765355439480,3.26261605,3329.8,3329.7,0.7281]
[1765355439681,3.26261605,3329.8,3329.7,1.4185]
[1765355440885,2.33603499,3329.8,3329.7,0.7281]
[1765355441092,2.33603499,3329.8,3329.7,1.4185]
[1765355441892,2.33603499,3329.8,3329.7,0.7281]
[1765355442285,2.07638474,3329.8,3329.7,0.7281]
[1765355443293,2.07638474,3329.8,3329.7,1.4185]
[1765355443493,2.07638474,3329.8,3329.7,0.7281]
[1765355443990,2.07638474,3329.8,3329.7,1.4185]
[1765355445895,2.07638474,3329.8,3329.7,0.7281]
[1765355446094,2.07638474,3329.8,3329.1,4.81741212]
[1765355446294,1.4248,3329.8,3329.1,4.81741212]
[1765355446993,1.4248,3329.8,3329.1,8.53755599]
[1765355447195,1.4248,3329.8,3329.7,0.7281]
[1765355447396,2.07434359,3329.8,3329.7,0.7281]
[1765355447799,2.07434359,3329.8,3329.7,1.4185]
[1765355447992,1.4248,3329.8,3329.7,1.4185]
[1765355450097,0.698,3329.8,3329.7,1.4185]
[1765355450395,3.415e-05,3330.1,3329.8,0.6904]
[1765355450594,3.415e-05,3330.1,3329.8,5.32975599]
[1765355451101,3.415e-05,3330.1,3329.8,1.60961212]
[1765355451401,3.415e-05,3330.1,3329.7,9.46413705]
[1765355453004,3.415e-05,3330.1,3329.7,8.53755599]
[1765355453306,3.415e-05,3330.1,3329.7,6.92794387]
[1765355457202,3.415e-05,3330.1,3329.7,7.16438937]
[1765355458211,3.415e-05,3330.1,3330.0,0.4252]
[1765355459804,3.415e-05,3330.1,3330.0,3.633]
[1765355460003,1.8606,3331.0,3330.9,1.4185]
[1765355460712,0.698,3330.6,3330.5,1.8437]
[1765355461111,0.7006408,3330.6,3330.5,1.84642963]
[1765355461511,0.0026408,3330.6,3330.5,1.84642963]
[1765355464311,0.0026408,3330.6,3330.5,1.99655963]
[1765355466312,0.698,3331.5,3331.0,0.2787]
[1765355466615,1.4248,3331.4,3331.3,4.6263]
[1765355467412,1.42806483,3331.4,3331.3,4.6263]
[1765355469920,1.42806483,3331.4,3331.3,3.9359]
[1765355470519,1.42806483,3331.4,3331.3,3.2078]
[1765355470716,1.3882,3330.9,3330.8,3.2078]
[1765355471022,2.31425797,3330.9,3330.8,3.2078]
[1765355471619,1.3882,3330.6,3330.5,1.38392963]
[1765355471817,1.3882,3330.6,3330.5,0.71502963]
[1765355472018,1.3882,3330.6,3330.5,0.00272963]
[1765355472219,2.31425797,3330.6,3330.5,0.71502963]
[1765355473526,2.31425797,3330.6,3330.5,0.00272963]
[1765355473828,1.3882,3330.6,3330.5,1.38392963]
[1765355475626,4.596,3331.3,3331.2,0.7123]
[1765355475826,5.24397907,3331.3,3331.2,0.7123]
[1765355476222,5.24397907,3331.3,3330.8,3.2078]
[1765355476418,0.671,3330.9,3330.8,4.589]